[Event "FIDE WCCC U12 2018"]
[Site "Santiago de Compostela"]
[Date "2018.11.10"]
[Round "6"]
[White "Samadov, Read"]
[Black "Guo, Arthur"]
[Result "1-0"]
[ECO "E11"]
[WhiteElo "2029"]
[BlackElo "2333"]
[Annotator "ChessBase"]
[PlyCount "93"]
[EventDate "2018.11.04"]
[EventType "swiss"]
[EventCountry "ESP"]
[SourceTitle "playchess.com"]
[Source "ChessBase"]
[SourceQuality "1"]
[TimeControl "40/5400+30:1800+30"]

1. d4 {[%emt 0:00:00]} Nf6 {[%emt 0:00:00]} 2. c4 {[%emt 0:00:00]} e6 {[%emt 0:00:00]} 3. Nf3 {[%emt 0:00:00]} Bb4+ {[%emt 0:00:00]} 4. Nbd2 {[%emt 0:00:00]} b6 {[%emt 0:00:00]} 5. a3 {[%emt 0:00:20]} Bxd2+ {[%emt 0:00:00]} 6. Qxd2 {[%emt 0:00:14]} Bb7 {[%emt 0:00:04]} 7. e3 {[%emt 0:00:16]} d6 8. Be2 {[%emt 0:00:18]} O-O {[%emt 0:00:09]} 9. b4 {[%emt 0:01:21]} Nbd7 {[%emt 0:00:05]} 10. Bb2 {[%emt 0:00:17]} Ne4 {[%emt 0:00:05]} 11. Qc2 {[%emt 0:01:53]} f5 {[%emt 0:00:05]} 12. d5 {[%emt 0:11:14]} e5 {[%emt 0:01:37]} 13. Nd2 {[%emt 0:02:54]} Nxd2 {[%emt 0:01:06]} 14. Qxd2 {[%emt 0:00:10]} Qg5 {[%emt 0:03:32]} 15. O-O {[%emt 0:02:26]} Rae8 {[%emt 0:01:36]} 16. Rae1 {[%emt 0:02:25]} Qg6 {[%emt 0:01:21]} 17. f4 {[%emt 0:08:55]} c6 {[%emt 0:10:28]} 18. dxc6 {[%emt 0:10:06]} Bxc6 {[%emt 0:03:22]} 19. Bd3 {[%emt 0:07:36]} Kh8 {[%emt 0:04:30]} 20. Qc2 {[%emt 0:04:39]} Qg4 {[%emt 0:05:43]} 21. Qf2 {[%emt 0:03:30]} Rf6 {[%emt 0:00:38]} 22. Be2 Qg6 {[%emt 0:01:36]} 23. Bf3 {[%emt 0:03:00]} Rc8 {[%emt 0:00:30]} 24. Bxc6 Rxc6 {[%emt 0:00:02]} 25. Qf3 {[%emt 0:06:28]} Rxc4 {[%emt 0:09:30]} 26. fxe5 {[%emt 0:02:58]} dxe5 {[%emt 0:02:57]} 27. Bxe5 {[%emt 0:05:15]} Rf8 {[%emt 0:18:09]} 28. Bd4 {[%emt 0:05:00]} a6 {[%emt 0:00:30]} 29. Rc1 {[%emt 0:00:30]} Qe6 {[%emt 0:08:24]} 30. Qg3 {[%emt 0:06:21]} Rf7 {[%emt 0:00:42]} 31. h3 {[%emt 0:03:17]} f4 {[%emt 0:07:55]} 32. Rxc4 {[%emt 0:02:43]} Qxc4 33. Rxf4 {[%emt 0:01:41]} Qc7 {[%emt 0:06:20]} 34. Qf3 {[%emt 0:05:54]} Rxf4 {[%emt 0:00:16]} 35. Qxf4 {[%emt 0:01:23]} Qxf4 {[%emt 0:05:33]} 36. exf4 {[%emt 0:00:03]} Kg8 {[%emt 0:00:26]} 37. Kf2 {[%emt 0:03:02]} Kf7 {[%emt 0:01:22]} 38. Ke3 {[%emt 0:01:15]} g6 {[%emt 0:00:30]} 39. Ke4 {[%emt 0:00:38]} Ke6 {[%emt 0:00:07]} 40. a4 {[%emt 0:00:00]} b5 {[%emt 0:00:00]} 41. axb5 {[%emt 0:07:31]} axb5 {[%emt 0:00:45]} 42. g4 {[%emt 0:00:30]} Nb8 {[%emt 0:00:30]} 43. f5+ {[%emt 0:02:51]} Kd7 {[%emt 0:00:58]} 44. fxg6 {[%emt 0:05:02]} hxg6 {[%emt 0:00:03]} 45. Kd5 {[%emt 0:00:55]} Nc6 {[%emt 0:00:04]} 46. Bc3 {[%emt 0:00:05]} Nd8 {[%emt 0:00:23]} 47. Kc5 {[%emt 0:00:28]} 1-0

[Event "FIDE WCCC U12 2018"]
[Site "Santiago de Compostela"]
[Date "2018.11.10"]
[Round "6"]
[White "Park, Evan"]
[Black "Lazavik, Denis"]
[Result "0-1"]
[ECO "C50"]
[WhiteElo "1997"]
[BlackElo "2235"]
[Annotator "ChessBase"]
[PlyCount "76"]
[EventDate "2018.11.04"]
[EventType "swiss"]
[EventCountry "ESP"]
[SourceTitle "playchess.com"]
[Source "ChessBase"]
[SourceQuality "1"]
[TimeControl "40/5400+30:1800+30"]

1. e4 {[%emt 0:00:00]} e5 {[%emt 0:00:00]} 2. Nf3 {[%emt 0:00:00]} Nc6 {[%emt 0:00:21]} 3. Bc4 {[%emt 0:00:00]} Bc5 {[%emt 0:01:58]} 4. O-O {[%emt 0:00:09]} Nf6 {[%emt 0:01:47]} 5. d3 {[%emt 0:00:40]} d6 {[%emt 0:01:45]} 6. c3 {[%emt 0:00:29]} a6 {[%emt 0:03:03]} 7. a4 {[%emt 0:01:50]} h6 {[%emt 0:03:08]} 8. Re1 {[%emt 0:01:52]} O-O {[%emt 0:01:37]} 9. h3 {[%emt 0:02:02]} Be6 {[%emt 0:05:59]} 10. Bxe6 {[%emt 0:05:23]} fxe6 {[%emt 0:00:08]} 11. d4 {[%emt 0:03:26]} exd4 {[%emt 0:02:33]} 12. cxd4 {[%emt 0:01:23]} Ba7 {[%emt 0:02:57]} 13. Nc3 {[%emt 0:04:13]} d5 {[%emt 0:03:31]} 14. e5 {[%emt 0:03:09]} Nd7 {[%emt 0:10:34]} 15. Be3 {[%emt 0:04:07]} Qe7 {[%emt 0:03:29]} 16. Ne2 {[%emt 0:10:02]} Rf5 {[%emt 0:16:13]} 17. Ng3 {[%emt 0:12:08]} Rf7 {[%emt 0:01:48]} 18. Qd3 {[%emt 0:03:52]} Nf8 {[%emt 0:01:50]} 19. Rad1 {[%emt 0:03:14]} Nb4 {[%emt 0:06:23]} 20. Qb3 {[%emt 0:06:10]} c5 {[%emt 0:02:34]} 21. dxc5 {[%emt 0:03:15]} Bxc5 {[%emt 0:00:23]} 22. Bxc5 {[%emt 0:04:21]} Qxc5 {[%emt 0:00:05]} 23. Rc1 {[%emt 0:02:43]} Qa5 {[%emt 0:05:45]} 24. Rc3 {[%emt 0:05:12]} Nc6 {[%emt 0:01:17]} 25. Rec1 {[%emt 0:02:33]} Ng6 {[%emt 0:02:27]} 26. Rc5 {[%emt 0:04:20]} Qd8 {[%emt 0:01:04]} 27. Qe3 {[%emt 0:02:05]} Qd7 {[%emt 0:04:17]} 28. Ne2 {[%emt 0:03:35]} Raf8 {[%emt 0:02:06]} 29. Ned4 {[%emt 0:04:35]} Nge7 {[%emt 0:03:39]} 30. b4 {[%emt 0:02:24]} Nxd4 {[%emt 0:02:12]} 31. Nxd4 {[%emt 0:00:31]} Nf5 {[%emt 0:00:41]} 32. Nxf5 Rxf5 {[%emt 0:00:10]} 33. Rc7 {[%emt 0:02:52]} Qxa4 {[%emt 0:00:27]} 34. Rxb7 {[%emt 0:01:08]} Rxf2 {[%emt 0:02:42]} 35. Qb6 Qa3 {[%emt 0:04:55]} 36. Qxe6+ {[%emt 0:03:05]} Kh8 {[%emt 0:00:10]} 37. Rbc7 {[%emt 0:00:41]} Qe3 {[%emt 0:02:30]} 38. Qg4 {[%emt 0:00:55]} R2f4+ {[%emt 0:00:15]} 0-1

[Event "FIDE WCCC U12 2018"]
[Site "Santiago de Compostela"]
[Date "2018.11.10"]
[Round "6"]
[White "Hommer, Jeremy"]
[Black "Del Prado Rodriguez, Xulio"]
[Result "1/2-1/2"]
[ECO "A45"]
[WhiteElo "1987"]
[BlackElo "1734"]
[Annotator "NA"]
[PlyCount "82"]
[EventDate "2018.11.04"]
[EventType "swiss"]
[EventCountry "ESP"]
[SourceTitle "playchess.com"]
[Source "ChessBase"]
[SourceQuality "1"]
[TimeControl "40/5400+30:1800+30"]

1. d4 {[%emt 0:00:00]} Nf6 {[%emt 0:00:01]} 2. Bf4 {[%emt 0:00:00]} e6 {[%emt 0:00:11]} 3. e3 {[%emt 0:00:00]} c5 {[%emt 0:00:46]} 4. c3 {[%emt 0:00:07]} b6 {[%emt 0:00:22]} 5. Nd2 {[%emt 0:00:45]} Bb7 {[%emt 0:00:52]} 6. h3 {[%emt 0:00:37]} Be7 {[%emt 0:00:10]} 7. Ngf3 {[%emt 0:01:26]} O-O {[%emt 0:00:44]} 8. Bd3 {[%emt 0:00:47]} cxd4 {[%emt 0:01:48]} 9. exd4 {[%emt 0:01:22]} d6 {[%emt 0:00:41]} 10. O-O {[%emt 0:05:01]} Re8 {[%emt 0:02:22]} 11. Bh2 {[%emt 0:05:25]} a6 {[%emt 0:02:51]} 12. Re1 {[%emt 0:05:36]} Nbd7 {[%emt 0:01:42]} 13. Nc4 {[%emt 0:07:13]} Nf8 {[%emt 0:03:06]} 14. a4 {[%emt 0:01:50]} b5 {[%emt 0:07:54]} 15. Ncd2 {[%emt 0:07:12]} Qd7 {[%emt 0:03:52]} 16. Ne4 {[%emt 0:11:36]} Nxe4 {[%emt 0:17:39]} 17. Bxe4 {[%emt 0:00:03]} Bxe4 {[%emt 0:00:09]} 18. Rxe4 {[%emt 0:00:04]} d5 {[%emt 0:01:13]} 19. Re3 {[%emt 0:08:51]} Ng6 {[%emt 0:02:02]} 20. Ne5 {[%emt 0:08:53]} Nxe5 {[%emt 0:02:36]} 21. Bxe5 {[%emt 0:00:10]} Bd6 {[%emt 0:07:21]} 22. Qe2 {[%emt 0:06:19]} Bxe5 {[%emt 0:02:29]} 23. Rxe5 {[%emt 0:00:25]} bxa4 {[%emt 0:01:07]} 24. h4 {[%emt 0:01:30]} Qb5 {[%emt 0:05:05]} 25. Qc2 {[%emt 0:03:55]} Reb8 {[%emt 0:08:43]} 26. Re2 {[%emt 0:00:30]} Rb6 {[%emt 0:00:50]} 27. Rxa4 {[%emt 0:00:46]} a5 {[%emt 0:01:20]} 28. h5 {[%emt 0:02:26]} Rab8 {[%emt 0:00:58]} 29. Ra2 {[%emt 0:00:57]} h6 {[%emt 0:02:10]} 30. Rd2 {[%emt 0:02:52]} Qc4 {[%emt 0:04:40]} 31. Qa4 {[%emt 0:02:47]} Qxa4 {[%emt 0:01:42]} 32. Rxa4 {[%emt 0:00:06]} Rxb2 {[%emt 0:00:02]} 33. Rxb2 {[%emt 0:00:14]} Rxb2 {[%emt 0:00:08]} 34. Rxa5 {[%emt 0:00:13]} Kf8 {[%emt 0:04:52]} 35. Ra7 {[%emt 0:00:53]} Rc2 {[%emt 0:01:35]} 36. Rc7 {[%emt 0:00:10]} f6 {[%emt 0:01:30]} 37. g3 {[%emt 0:01:17]} Kg8 {[%emt 0:03:18]} 38. Kg2 {[%emt 0:01:20]} Kf8 {[%emt 0:00:10]} 39. Kf3 {[%emt 0:00:20]} Rd2 {[%emt 0:00:22]} 40. Ke3 {[%emt 0:00:00]} Rc2 {[%emt 0:00:00]} 41. Kf3 {[%emt 0:01:48]} Rd2 {[%emt 0:00:28] Ke4} 1/2-1/2

[Event "FIDE WCCC U12 2018"]
[Site "Santiago de Compostela"]
[Date "2018.11.10"]
[Round "6"]
[White "Anghel, Iulian-Mihai"]
[Black "Klimkowski, Jan"]
[Result "1-0"]
[ECO "B90"]
[WhiteElo "1981"]
[BlackElo "1810"]
[Annotator "NA"]
[PlyCount "81"]
[EventDate "2018.11.04"]
[EventType "swiss"]
[EventCountry "ESP"]
[SourceTitle "playchess.com"]
[Source "ChessBase"]
[SourceQuality "1"]
[TimeControl "40/5400+30:1800+30"]

1. e4 c5 2. Nf3 d6 3. d4 cxd4 4. Nxd4 Nf6 5. Nc3 a6 6. Be3 e5 7. Nb3 Be6 8. h3 d5 9. exd5 Nxd5 10. Nxd5 Qxd5 11. Qxd5 Bxd5 12. O-O-O Be6 13. Na5 b5 14. g3 Nd7 15. Bg2 Rd8 16. Nb7 Rc8 17. Nd6+ Bxd6 18. Rxd6 a5 19. Rhd1 Ke7 20. Bc6 Rc7 21. Bxb5 Rhc8 22. c3 Nc5 23. Bxc5 Rxc5 24. a4 Bxh3 25. Ra6 R8c7 26. Rxa5 Bd7 27. Kc2 Bxb5 28. Rxb5 Rxb5 29. axb5 Rc5 30. b4 Rxb5 31. Kb3 Rb7 32. Re1 Ke6 33. c4 f5 34. c5 Rd7 35. Rc1 Rd3+ 36. Kc4 Rd2 37. Kb5 Kd7 38. Kb6 Ra2 39. c6+ Kc8 40. Rd1 e4 41. c7 1-0

[Event "FIDE WCCC U12 2018"]
[Site "Santiago de Compostela"]
[Date "2018.11.10"]
[Round "6"]
[White "Chen, Max"]
[Black "Tashev, Aleksandar"]
[Result "1-0"]
[ECO "B30"]
[WhiteElo "1910"]
[BlackElo "2211"]
[Annotator "ChessBase"]
[PlyCount "51"]
[EventDate "2018.11.04"]
[EventType "swiss"]
[EventCountry "ESP"]
[SourceTitle "playchess.com"]
[Source "ChessBase"]
[SourceQuality "1"]
[TimeControl "40/5400+30:1800+30"]

1. e4 {[%emt 0:00:00]} c5 {[%emt 0:00:00]} 2. Nf3 {[%emt 0:00:33]} Nc6 {[%emt 0:00:29]} 3. Bb5 {[%emt 0:00:39]} e5 {[%emt 0:01:18]} 4. O-O {[%emt 0:04:12]} Nge7 {[%emt 0:01:53]} 5. c3 {[%emt 0:00:53]} g6 {[%emt 0:03:13]} 6. d4 {[%emt 0:04:16]} cxd4 {[%emt 0:01:06]} 7. cxd4 {[%emt 0:00:27]} exd4 {[%emt 0:00:41]} 8. Nxd4 {[%emt 0:04:51]} Bg7 {[%emt 0:00:40]} 9. Be3 {[%emt 0:03:34]} O-O {[%emt 0:01:38]} 10. Nc3 d5 {[%emt 0:01:04]} 11. exd5 {[%emt 0:02:58]} Nxd5 {[%emt 0:00:34]} 12. Nxc6 {[%emt 0:01:29]} bxc6 {[%emt 0:01:19]} 13. Nxd5 {[%emt 0:04:32]} cxb5 {[%emt 0:15:22]} 14. Bc5 {[%emt 0:21:51]} Re8 {[%emt 0:11:01]} 15. Be7 {[%emt 0:04:19]} Qd7 {[%emt 0:09:09]} 16. Rc1 {[%emt 0:00:34]} Kh8 {[%emt 0:14:28]} 17. Nc7 {[%emt 0:10:23]} Qxe7 {[%emt 0:05:30]} 18. Nxa8 {[%emt 0:02:22]} Bb7 {[%emt 0:01:47]} 19. Re1 {[%emt 0:04:43]} Qxe1+ {[%emt 0:02:28]} 20. Qxe1 {[%emt 0:00:08]} Rxe1+ {[%emt 0:00:07]} 21. Rxe1 {[%emt 0:00:04]} Bf6 {[%emt 0:06:29]} 22. Nc7 {[%emt 0:01:08]} a6 {[%emt 0:03:13]} 23. Re8+ {[%emt 0:03:04]} Kg7 {[%emt 0:00:02]} 24. Rb8 {[%emt 0:00:07]} Bc6 {[%emt 0:00:16]} 25. Rb6 {[%emt 0:00:21]} Bd7 {[%emt 0:00:03]} 26. Rd6 {[%emt 0:00:28]} 1-0

[Event "FIDE WCCC U12 2018"]
[Site "Santiago de Compostela"]
[Date "2018.11.10"]
[Round "6"]
[White "Zhao, Jeffrey Renfei"]
[Black "Creanga, Robert-Ionut"]
[Result "1/2-1/2"]
[ECO "B33"]
[WhiteElo "1889"]
[BlackElo "2066"]
[Annotator "NA RC"]
[PlyCount "127"]
[EventDate "2018.11.04"]
[EventType "swiss"]
[EventCountry "ESP"]
[SourceTitle "playchess.com"]
[Source "ChessBase"]
[SourceQuality "1"]
[TimeControl "40/5400+30:1800+30"]

1. e4 {[%emt 0:00:00]} c5 {[%emt 0:00:00]} 2. Nf3 {[%emt 0:00:00]} Nc6 {[%emt 0:00:00]} 3. d4 {[%emt 0:00:00]} cxd4 {[%emt 0:00:00]} 4. Nxd4 {[%emt 0:00:00]} Nf6 {[%emt 0:00:23]} 5. Nc3 {[%emt 0:00:00]} e5 {[%emt 0:00:05]} 6. Ndb5 {[%emt 0:00:03]} d6 {[%emt 0:00:22]} 7. Bg5 {[%emt 0:00:06]} a6 {[%emt 0:00:07]} 8. Na3 {[%emt 0:00:06]} b5 {[%emt 0:00:06]} 9. Nd5 {[%emt 0:00:07]} Be7 {[%emt 0:00:07]} 10. Bxf6 {[%emt 0:00:10]} Bxf6 {[%emt 0:00:05]} 11. c4 {[%emt 0:00:16]} b4 {[%emt 0:00:04] B33: Sizilianisch (Lasker/Pelikan/Sweschnikow-Variante)} 12. Nc2 {[%emt 0:00:08]} O-O {[%emt 0:00:33]} 13. g3 {[%emt 0:00:06]} a5 {[%emt 0:00:09]} 14. Bg2 {[%emt 0:00:46]} Bg5 {[%emt 0:01:17]} 15. O-O {[%emt 0:01:06]} Ne7 {[%emt 0:01:49]} 16. Qd3 {[%emt 0:02:10]} (16. Nce3 Bxe3 17. Nxe3 Be6 18. Rc1 Nc6 19. Nf5 {1-0 (54) Harikrishna,P (2744)-Yu,Y (2751) Huaian 2017}) 16... Nxd5 {[%emt 0:04:55]} 17. Qxd5 {[%emt 0:00:40]} Be6 {[%emt 0:02:04]} 18. Qd3 {[%emt 0:00:18]} Qc7 $146 {[%emt 0:00:56]} ({Vorgänger:} 18... Qb6 19. Rfd1 Rad8 20. Re1 Kh8 {0-1 (30) Schulze,L (1920)-Wielebinski,P (2058) Verden 2017}) 19. b3 {[%emt 0:00:41]} Qc5 {[%emt 0:02:30]} 20. Rad1 {[%emt 0:05:21]} Rad8 {[%emt 0:01:55]} 21. Kh1 {[%emt 0:01:11]} Kh8 {[%emt 0:34:06]} 22. f4 {[%emt 0:04:46]} exf4 {[%emt 0:10:02]} 23. gxf4 {[%emt 0:00:11]} Be7 {[%emt 0:04:17]} 24. Ne3 {[%emt 0:03:05]} f5 {[%emt 0:08:15]} 25. exf5 {[%emt 0:07:39]} Bxf5 {[%emt 0:00:10]} 26. Be4 {[%emt 0:00:27]} Bxe4+ {[%emt 0:07:49]} 27. Qxe4 {[%emt 0:00:58]} Rde8 {[%emt 0:01:20]} 28. Nd5 {[%emt 0:00:28]} Bd8 {[%emt 0:01:55]} 29. Qd3 {[%emt 0:00:39]} Qc8 {[%emt 0:03:16]} 30. Rfe1 {[%emt 0:06:43]} Bh4 {[%emt 0:05:36]} 31. Rg1 {[%emt 0:03:51]} Bf2 {[%emt 0:02:18]} 32. Rg5 {[%emt 0:02:26]} h6 {[%emt 0:03:15]} 33. Rg2 {[%emt 0:02:00]} Bc5 {[%emt 0:00:16]} 34. Qg6 {[%emt 0:00:54]} Qd7 {[%emt 0:00:40]} 35. Rf1 {[%emt 0:04:53]} Qf7 {[%emt 0:01:14]} 36. Qg3 {[%emt 0:02:11]} Bd4 {[%emt 0:00:42]} 37. Rd2 {[%emt 0:00:42]} Bc5 {[%emt 0:00:24]} 38. Rdd1 {[%emt 0:02:35]} Qf5 {[%emt 0:00:19]} 39. Rfe1 {[%emt 0:00:33]} Qf7 {[%emt 0:01:10]} 40. Rxe8 {[%emt 0:00:00]} Rxe8 {[%emt 0:00:00]} 41. Re1 {[%emt 0:02:06]} Rxe1+ {[%emt 0:10:06]} 42. Qxe1 {[%emt 0:00:44]} Qh5 {[%emt 0:00:14]} 43. Qe4 {[%emt 0:02:11]} Qd1+ {[%emt 0:01:21]} 44. Kg2 {[%emt 0:00:19]} Qg4+ {[%emt 0:01:37]} 45. Kf1 {[%emt 0:01:01]} Qd1+ {[%emt 0:00:15]} 46. Kg2 {[%emt 0:00:36]} Qg4+ {[%emt 0:00:01]} 47. Kf1 {[%emt 0:00:14]} Qg1+ {[%emt 0:00:14]} 48. Ke2 {[%emt 0:00:06]} Qxh2+ {[%emt 0:00:07]} 49. Kd3 {[%emt 0:03:26]} Qg3+ {[%emt 0:05:52]} 50. Kd2 {[%emt 0:02:35]} Qf2+ {[%emt 0:00:18]} 51. Kd3 {[%emt 0:00:36]} Qg1 {[%emt 0:04:43]} 52. Ke2 {[%emt 0:02:51]} Qd4 {[%emt 0:03:07]} 53. Qe6 {[%emt 0:07:34]} Qf2+ {[%emt 0:01:55]} 54. Kd1 $1 {[%emt 0:01:49]} Qd4+ {[%emt 0:00:07]} 55. Kc2 {[%emt 0:00:59]} Qf2+ {[%emt 0:00:35]} 56. Kd1 {[%emt 0:00:42]} Qg1+ {[%emt 0:00:14]} 57. Kc2 {[%emt 0:00:36]} Qg2+ {[%emt 0:03:19]} 58. Kd3 {[%emt 0:03:29]} Kh7 {[%emt 0:02:17]} 59. Ne7 {[%emt 0:09:26]} Qf3+ {[%emt 0:00:37]} 60. Kd2 {[%emt 0:00:40]} Qxf4+ {[%emt 0:00:39]} 61. Kc2 {[%emt 0:00:36]} Qf2+ {[%emt 0:00:14]} 62. Kb1 {[%emt 0:00:21]} Qf1+ {[%emt 0:02:33]} 63. Kc2 {[%emt 0:01:16]} Qg2+ $11 {[%emt 0:00:37] Kd2 Qf3} 64. Kb1 {[%emt 0:00:22]} 1/2-1/2

[Event "FIDE WCCC U12 2018"]
[Site "Santiago de Compostela"]
[Date "2018.11.10"]
[Round "6"]
[White "Yavuz, Efe Metehan"]
[Black "Yu, Jason"]
[Result "1-0"]
[ECO "C47"]
[WhiteElo "1828"]
[BlackElo "2097"]
[Annotator "NA RC"]
[PlyCount "105"]
[EventDate "2018.11.04"]
[EventType "swiss"]
[EventCountry "ESP"]
[SourceTitle "playchess.com"]
[Source "ChessBase"]
[SourceQuality "1"]
[TimeControl "40/5400+30:1800+30"]

1. e4 {[%emt 0:00:00]} e5 {[%emt 0:00:00]} 2. Nf3 {[%emt 0:00:10]} Nc6 {[%emt 0:00:00]} 3. Nc3 {[%emt 0:00:45]} Nf6 {[%emt 0:00:00]} 4. d4 {[%emt 0:00:41]} exd4 {[%emt 0:01:03]} 5. Nxd4 {[%emt 0:00:17]} Bc5 {[%emt 0:01:24]} 6. Be3 {[%emt 0:04:19]} Bb4 {[%emt 0:03:58] C47: Scotch Four Knights and Four Knights with 4 g3} (6... Bb6 7. Qd2 Ng4 8. Nxc6 dxc6 9. Qxd8+ Kxd8 10. Rd1+ Ke7 11. Bxb6 axb6 12. h3 Nf6 13. Be2 b5 14. a3 g5 {½-½ (39) Potapov,P (2515)-Chigaev,M (2599) Sochi 2018}) 7. Nxc6 {[%emt 0:34:59]} Bxc3+ {[%emt 0:18:35]} 8. bxc3 {[%emt 0:00:15]} bxc6 {[%emt 0:01:09]} 9. Bd3 {[%emt 0:01:00]} Qe7 {[%emt 0:03:16]} 10. O-O {[%emt 0:03:28]} O-O {[%emt 0:01:11]} 11. Re1 $146 {[%emt 0:00:42]} ({Predecessor:} 11. Bg5 Qe5 12. Bh4 Qxc3 13. f4 d6 14. Qf3 Ng4 15. h3 Qc5+ 16. Kh1 Qh5 17. Qg3 Nh6 18. f5 Kh8 19. Rae1 {1-0 (30) Danhel,L (1681)-Svoboda,J (1586) Prague 2014}) 11... d6 {[%emt 0:04:50]} 12. f3 {[%emt 0:05:06]} c5 {[%emt 0:03:15]} 13. Bf2 {[%emt 0:05:54]} Re8 {[%emt 0:13:31]} 14. Qd2 {[%emt 0:05:32]} h6 {[%emt 0:08:00]} 15. h3 {[%emt 0:07:43]} Bb7 {[%emt 0:08:52]} 16. Bg3 {[%emt 0:01:18]} Qd7 {[%emt 0:07:53]} 17. Bc4 {[%emt 0:02:38]} Nh5 {[%emt 0:06:36]} 18. Bf2 {[%emt 0:03:50]} Re5 {[%emt 0:03:26]} 19. Rab1 {[%emt 0:04:47]} Bc6 {[%emt 0:00:45]} 20. Be2 {[%emt 0:03:45]} g5 {[%emt 0:01:29]} 21. Be3 {[%emt 0:01:39]} Rae8 {[%emt 0:01:44]} 22. Bc4 {[%emt 0:03:26]} Kh8 {[%emt 0:01:55]} 23. Rbd1 {[%emt 0:03:20]} Qe7 {[%emt 0:01:06]} 24. Bd4 {[%emt 0:01:44]} cxd4 {[%emt 0:00:15]} 25. cxd4 {[%emt 0:00:11]} Rb5 {[%emt 0:00:59]} 26. d5 {[%emt 0:01:10]} Bd7 {[%emt 0:00:57]} 27. Bxb5 {[%emt 0:00:15]} Bxb5 28. Qd4+ {[%emt 0:00:43]} f6 {[%emt 0:02:02]} 29. a4 {[%emt 0:00:35]} Bd7 30. Rb1 {[%emt 0:01:00]} a5 {[%emt 0:02:09]} 31. Rb7 {[%emt 0:00:20]} Rc8 {[%emt 0:00:25]} 32. Reb1 {[%emt 0:01:06]} Nf4 33. Kf2 {[%emt 0:00:37]} Kh7 {[%emt 0:01:54]} 34. Rb8 {[%emt 0:00:19]} c5 {[%emt 0:01:22]} 35. Qc3 {[%emt 0:02:26]} Rxb8 36. Rxb8 {[%emt 0:00:02]} Bxa4 $2 {[%emt 0:02:06]} (36... Be8 $11) 37. Qxa5 {[%emt 0:00:09]} Bd7 {[%emt 0:01:00]} 38. Qd8 {[%emt 0:01:13]} Qxd8 {[%emt 0:00:19]} 39. Rxd8 {[%emt 0:00:01]} Ba4 {[%emt 0:00:11]} 40. Rxd6 {[%emt 0:00:00]} Bxc2 {[%emt 0:00:00]} 41. Rxf6 {[%emt 0:00:57]} Kg7 {[%emt 0:01:28]} 42. Rb6 {[%emt 0:02:39]} Ba4 {[%emt 0:01:42]} 43. g3 {[%emt 0:02:51]} Nd3+ {[%emt 0:00:43]} 44. Ke2 {[%emt 0:00:14]} c4 {[%emt 0:01:06]} 45. Ke3 {[%emt 0:03:23]} Ne1 {[%emt 0:04:45]} 46. Rb7+ {[%emt 0:03:55]} Kf6 {[%emt 0:01:20]} 47. Rc7 {[%emt 0:00:29]} (47. Rb6+ Ke7) 47... Bb3 {[%emt 0:04:36]} 48. Rc6+ {[%emt 0:03:11]} Ke7 {[%emt 0:02:54]} 49. e5 {[%emt 0:00:28]} Nc2+ {[%emt 0:08:49]} 50. Ke4 {[%emt 0:00:09]} Nb4 {[%emt 0:00:59]} 51. Rc7+ {[%emt 0:04:29]} Kd8 {[%emt 0:00:18] [#]} 52. d6 $1 {[%emt 0:01:36]} Na2 {[%emt 0:02:15]} 53. e6 1-0

[Event "FIDE WCCC U12 2018"]
[Site "Santiago de Compostela"]
[Date "2018.11.10"]
[Round "6"]
[White "Ohanyan, Emin"]
[Black "Maurizzi, Marc Andria"]
[Result "0-1"]
[ECO "C11"]
[WhiteElo "1742"]
[BlackElo "2103"]
[Annotator "ChessBase"]
[PlyCount "101"]
[EventDate "2018.11.04"]
[EventType "swiss"]
[EventCountry "ESP"]
[SourceTitle "playchess.com"]
[Source "ChessBase"]
[SourceQuality "1"]
[TimeControl "40/5400+30:1800+30"]

1. e4 {[%emt 0:00:00]} e6 {[%emt 0:00:00]} 2. d4 {[%emt 0:00:00]} d5 {[%emt 0:00:10]} 3. Nc3 {[%emt 0:00:00]} Nf6 {[%emt 0:00:42]} 4. e5 {[%emt 0:00:00]} Nfd7 {[%emt 0:00:07]} 5. f4 {[%emt 0:00:08]} c5 {[%emt 0:00:08]} 6. Nf3 {[%emt 0:00:06]} Nc6 {[%emt 0:00:07]} 7. Be3 {[%emt 0:00:08]} Be7 {[%emt 0:00:08]} 8. Qd2 {[%emt 0:00:07]} O-O {[%emt 0:00:07]} 9. dxc5 {[%emt 0:00:10]} Qa5 {[%emt 0:00:03]} 10. Nb5 {[%emt 0:21:42]} Qxd2+ {[%emt 0:00:46]} 11. Kxd2 {[%emt 0:00:08]} Nxc5 {[%emt 0:00:44]} 12. Bd3 {[%emt 0:03:07]} Bd7 {[%emt 0:13:59]} 13. Nbd4 {[%emt 0:08:30]} Rac8 {[%emt 0:04:51]} 14. a3 {[%emt 0:06:38]} a5 {[%emt 0:27:58]} 15. Rhb1 {[%emt 0:23:27]} a4 {[%emt 0:15:25]} 16. Rf1 {[%emt 0:11:20]} Na5 {[%emt 0:02:14]} 17. Rae1 {[%emt 0:02:11]} Nc4+ {[%emt 0:03:08]} 18. Bxc4 {[%emt 0:00:27]} dxc4 {[%emt 0:00:18]} 19. Bg1 {[%emt 0:06:37]} Rfd8 {[%emt 0:13:24]} 20. g4 {[%emt 0:02:10]} Bc6 {[%emt 0:07:56]} 21. Kc3 {[%emt 0:07:00]} Bd5 {[%emt 0:03:18]} 22. f5 {[%emt 0:03:27]} Ne4+ {[%emt 0:01:58]} 23. Rxe4 {[%emt 0:00:04]} Bxe4 {[%emt 0:00:03]} 24. fxe6 {[%emt 0:00:07]} fxe6 {[%emt 0:00:08]} 25. Nxe6 {[%emt 0:00:40]} Rd5 {[%emt 0:00:51]} 26. Bd4 {[%emt 0:01:23]} Rc6 {[%emt 0:01:37]} 27. Nf4 {[%emt 0:00:15]} Rd8 {[%emt 0:00:07]} 28. Nd2 {[%emt 0:00:25]} Bg6 {[%emt 0:00:19]} 29. Nf3 {[%emt 0:02:51]} Rf8 {[%emt 0:00:33]} 30. Nd5 {[%emt 0:00:51]} Bd8 {[%emt 0:00:01]} 31. Nb4 {[%emt 0:00:58]} Rc8 {[%emt 0:00:39]} 32. Nd2 {[%emt 0:00:26]} Rxf1 {[%emt 0:00:29]} 33. Nxf1 {[%emt 0:00:01]} Kf7 {[%emt 0:01:07]} 34. Ne3 {[%emt 0:00:29]} Ke6 {[%emt 0:00:05]} 35. Ned5 {[%emt 0:00:21]} Bf7 {[%emt 0:01:38]} 36. Nf4+ {[%emt 0:00:13]} Kd7 {[%emt 0:00:01]} 37. Be3 {[%emt 0:01:10]} Bc7 {[%emt 0:01:00]} 38. Bd4 {[%emt 0:00:32]} Re8 {[%emt 0:00:39]} 39. e6+ {[%emt 0:00:15]} Bxe6 {[%emt 0:00:06]} 40. Nxe6 {[%emt 0:00:00]} Rxe6 {[%emt 0:00:00]} 41. Kxc4 {[%emt 0:00:27]} Bxh2 {[%emt 0:00:31]} 42. Nd3 {[%emt 0:01:36]} Rg6 {[%emt 0:01:06]} 43. Be5 {[%emt 0:06:42]} Rxg4+ {[%emt 0:00:12]} 44. Kc3 {[%emt 0:00:32]} Rg2 {[%emt 0:00:31]} 45. Bd4 {[%emt 0:00:58]} Bd6 {[%emt 0:00:24]} 46. Ne1 {[%emt 0:00:23]} Rg4 {[%emt 0:00:39]} 47. Nd3 {[%emt 0:00:29]} h5 {[%emt 0:00:12]} 48. Kc4 {[%emt 0:00:01]} h4 {[%emt 0:00:23]} 49. Kd5 {[%emt 0:00:16]} h3 {[%emt 0:00:16]} 50. Be5 {[%emt 0:00:03]} Rg5 {[%emt 0:01:10]} 51. Kd4 0-1